Cogmind - Beta 10.1 @@@ ROGUE MODE // 2020.10.10 @ 14:59:08 Player: Alexbot Result: Destroyed by G-67 Veteran with Electrolaser Performance ------------- Evolutions (4) 2000 Regions Visited (11) 2200 Robots Destroyed (157) 785 Value Destroyed (5760) 5760 Prototype IDs (36) 720 Alien Tech Used (0) 0 Bonus (856) 856 TOTAL SCORE: 12321 Bonus ------- High Alert Combat Kills 976 Follower Combat Kills 136 Friendly Fire -256 Cogmind --------- Core Integrity 0/850 Matter 230/300 Energy 146/150 System Corruption 14% Temperature Cool (11) Movement Core (550) Ox10 Location -6/Lower Caves Parts ------- > --- POWER (1) -------- Micro Nuclear Core > --- PROPULSION (2) --- (None) > --- UTILITY (9) ------ Advanced Heat Sink Medium Storage Unit Long-range Sensor Array Experimental Signal Interpreter Advanced Terrain Scan Processor Improved Light Armor Plating Hacking Suite System Shield System Shield > --- WEAPON (3) ------- Heavy Flak Cannon Remote Datajack > --- INVENTORY (8) ---- Light Angular Momentum Engine Compact Wheel Gravmag System Fusion Compressor Peak State ------------ > --- POWER ------------ Micro Nuclear Core > --- PROPULSION ------- Cooled Aerolev Unit Combat Gravmag System > --- UTILITY ---------- Advanced Heat Sink Long-range Sensor Array Experimental Signal Interpreter Advanced Terrain Scan Processor Phase Shifter Improved Light Armor Plating Improved Shield Generator Hacking Suite System Shield > --- WEAPON ----------- Plasma Rifle Heavy Plasma Cannon Improved Proton Missile Launcher > --- INVENTORY -------- Light Fission Core Armored Wheel Improved Linear Gravjet Hypervelocity Mass Driver [Rating: 70] Favorites ----------- Power Cooled Ion Engine Engine Cooled Ion Engine Power Core Micro Nuclear Core Propulsion Light Treads Treads Light Treads Leg Aluminum Leg Wheel Armored Huge Wheel Hover Unit Cooled Aerolev Unit Flight Unit Improved VTOL Module Utility High-capacity Storage Unit Device Advanced Heat Sink Storage High-capacity Storage Unit Processor Improved Signal Interpreter Hackware System Shield Protection Improved Light Armor Plating Weapon Advanced Beam Rifle Energy Gun Advanced Beam Rifle Energy Cannon Heavy Plasma Cannon Ballistic Gun Assault Rifle Ballistic Cannon Magnetic Acceleration Cannon Launcher Improved Proton Missile Launcher Special Weapon Remote Datajack Slashing Weapon Greatsword Build | -11 -10 -10 -10 -9 -8 -8 -7 -6 -6 -6 -6 ------- Run | Scr Mat Min Exi Min Mat Sto Fac Fac Was Fac Low Slots Evolved 8 | . . . . . 4 . 2 2 . . . Power . | . . . . . . . . . . . . Propulsion . | . . . . . . . . . . . . Utility 7 | . . . . . 4 . 2 1 . . . Weapon 1 | . . . . . . . . 1 . . . Parts Attached 191 | . . 3 2 . 1 42 57 58 2 26 . Power 13 | . . . . . . 3 2 7 . 1 . Engine 9 | . . . . . . 3 1 5 . . . Core 4 | . . . . . . . 1 2 . 1 . Reactor . | . . . . . . . . . . . . Propulsion 27 | . . . . . . 9 8 4 2 4 . Treads 13 | . . . . . . 7 6 . . . . Leg 2 | . . . . . . . 1 1 . . . Wheel 3 | . . . . . . . 1 2 . . . Hover 8 | . . . . . . 1 . 1 2 4 . Flight 1 | . . . . . . 1 . . . . . Utility 69 | . . 1 2 . . 6 23 25 . 12 . Device 28 | . . . . . . 3 7 10 . 8 . Storage 11 | . . 1 2 . . 1 4 2 . 1 . Processor 6 | . . . . . . . 2 3 . 1 . Hackware 3 | . . . . . . . . 2 . 1 . Protection 21 | . . . . . . 2 10 8 . 1 . Artifact . | . . . . . . . . . . . . Weapon 82 | . . 2 . . 1 24 24 22 . 9 . Energy Gun 33 | . . . . . . 12 13 6 . 2 . Energy Cannon 12 | . . . . . . . 2 7 . 3 . Ballistic Gun 11 | . . 2 . . . 7 1 1 . . . Ballistic Cannon 7 | . . . . . . . . 4 . 3 . Launcher 11 | . . . . . . 1 6 4 . . . Special Weapon 6 | . . . . . 1 4 . . . 1 . Impact Weapon . | . . . . . . . . . . . . Slashing Weapon 2 | . . . . . . . 2 . . . . Piercing Weapon . | . . . . . . . . . . . . Special Melee Weapon . | . . . . . . . . . . . . Unidentified Prototypes 13 | . . . . . . 9 1 2 . 1 . Parts Lost 51 | . . . . . . 10 23 12 . 4 2 Power 7 | . . . . . . 2 3 2 . . . Propulsion 8 | . . . . . . 2 2 1 . 1 2 Utility 17 | . . . . . . 2 10 4 . 1 . Weapon 19 | . . . . . . 4 8 5 . 2 . Highest Loss Streak 7 | . . . . . . 5 7 7 . 2 2 Average Slot Usage (%) 86 | . 85 95 100 100 63 89 91 74 59 75 93 Engine 6 | . 14 14 14 14 9 9 6 4 . . . Core 1 | . . . . . . . . . 6 6 6 Treads 7 | . . . . . . 17 13 . . . . Leg 5 | . 28 28 28 28 18 . . . . . . Hover 1 | . . . . . . . . . 12 9 13 Device 9 | . . . . . . 13 10 12 6 14 13 Storage 20 | . 14 24 28 28 18 23 29 9 . . 6 Processor 4 | . . . . . . . 3 9 13 13 13 Hackware 2 | . . . . . . . . 3 13 13 20 Protection 7 | . . . . . . 7 10 11 . 5 6 Energy Gun 8 | . 28 . . . . 12 13 8 . 2 . Ballistic Gun 5 | . . 27 28 28 15 3 . 1 . . . Naked Turns 33 | . . . . . . . 33 . . . . Heaviest Build 173 | 13 13 17 41 41 41 72 173 72 15 38 31 Greatest Support 48 | 20 20 20 20 20 20 40 48 28 47 47 47 Greatest Overweight (x) 7 | . . . 2 2 2 1 7 2 . 1 . Average Overweight (x) 1 | . . . 1 2 1 . 2 1 . . . Largest Inventory Capacity 36 | . 6 8 16 16 16 22 36 12 4 8 8 Average Capacity 19 | . 6 7 13 16 16 19 34 9 4 4 8 Most Carried 36 | . 6 7 12 15 16 22 36 12 4 5 4 Average Carried 17 | . 5 6 9 14 15 19 31 9 3 3 4 Final Capacity 22 | 6 6 8 16 16 16 22 4 4 4 8 8 Final Carried 22 | 6 6 7 12 15 16 22 4 2 4 4 4 Class Distribution -------------------- 43% | Hauler-Mutant 26% | Mutant 16% | Hacker-Mutant 7% | Scavenger-Tank 5% | Scavenger-Mutant Dominant Class ---------------- Mutant | -10/Materials Mutant | -10/Mines Mutant | -10/Exiles Mutant | -9/Mines Mutant | -8/Materials Hauler-Mutant | -8/Storage Hauler-Mutant | -7/Factory Scavenger-Tank | -6/Factory Hacker-Mutant | -6/Waste Hacker-Mutant | -6/Factory Hacker-Mutant | -6/Lower Caves Resources | -11 -10 -10 -10 -9 -8 -8 -7 -6 -6 -6 -6 ----------- Run | Scr Mat Min Exi Min Mat Sto Fac Fac Was Fac Low Matter Collected 3316 | 200 . 118 . 32 . 530 748 1149 . 539 . Remotely . | . . . . . . . . . . . . Salvage Created 6783 | . 124 119 . . . 1517 2432 1740 . 851 . Parts 293 | . 5 8 . . . 72 110 64 . 34 . Haulers Intercepted 3 | . . . . . . . 2 1 . . . Recyclers Shooed 8 | . 1 . . . . . 2 4 . 1 . Parts Field Recycled . | . . . . . . . . . . . . Retrieved Matter . | . . . . . . . . . . . . Parts Self-Destructed 2 | . . . . . . . . . . . 2 Prevented 1 | . . . . . . . . . . . 1 Kills | -11 -10 -10 -10 -9 -8 -8 -7 -6 -6 -6 -6 ------- Run | Scr Mat Min Exi Min Mat Sto Fac Fac Was Fac Low Combat Hostiles Destroyed 117 | . 2 7 . . . 31 40 29 . 8 . Melee 1 | . . . . . . . 1 . . . . Guns 68 | . 2 7 . . . 30 24 5 . . . Cannons 20 | . . . . . . . 1 11 . 8 . AOE 17 | . . . . . . . 7 10 . . . Classes Destroyed 14 | . 2 1 . . . 5 6 . . . . Worker 14 | . . . . . . . 12 1 . 1 . Builder 6 | . . . . . . . 5 1 . . . Hauler 3 | . . . . . . . 2 1 . . . Recycler 8 | . . . . . . 1 1 3 . 3 . Mechanic 1 | . . . . . . 1 . . . . . Operator 3 | . . . . . . 1 . 1 . 1 . Watcher 5 | . 1 . . . . 1 2 . . 1 . Swarmer 28 | . . 7 . . . 7 7 7 . . . Grunt 45 | . 2 . . . . 14 12 11 . 6 . Brawler 3 | . . . . . . . 2 1 . . . Duelist 3 | . . . . . . . 2 1 . . . Sentry 19 | . . . . . . 9 7 3 . . . Hunter 7 | . . . . . . 1 2 4 . . . Programmer 11 | . . . . . . . 7 2 . 2 . Thug 1 | . . . . . . . 1 . . . . Best Kill Streak 15 | . 1 3 . . . 8 15 10 . 6 . Combat Bots Only 8 | . 1 3 . . . 8 5 8 . 5 . Max Kills in Single Turn 7 | . 1 2 . . . 1 7 2 . 2 . Gunslinging 1 | . . 1 . . . . . . . . . Exploded 2 | . . . . . . . 2 2 . . . Melee 1 | . . . . . . . 1 . . . . Uniques/NPCs Destroyed . | . . . . . . . . . . . . Combat | -11 -10 -10 -10 -9 -8 -8 -7 -6 -6 -6 -6 -------- Run | Scr Mat Min Exi Min Mat Sto Fac Fac Was Fac Low Damage Taken 11318 | . 74 267 . . 63 1593 5436 2922 . 847 116 Core 1784 | . . 49 . . 31 212 631 626 . 218 17 Absorbed by Shields 393 | . . . . . . 143 210 40 . . . Core Remaining (%) 61 | 100 . . . 80 . 55 9 . . . . Volleys Fired 473 | . 9 21 . . 3 129 142 111 . 58 . Largest 3 | . 2 2 . . 2 2 2 3 . 1 . Hottest 196 | . 80 80 . . 100 122 141 196 . 90 . Shots Fired 763 | . 18 42 . . 4 211 225 202 . 60 1 Gun 520 | . 18 42 . . 2 191 189 78 . . . Cannon 182 | . . . . . . . 10 111 . 60 1 Launcher 39 | . . . . . . . 26 13 . . . Special 22 | . . . . . 2 20 . . . . . Kinetic 214 | . . 30 . . 2 64 . 87 . 30 1 Thermal 401 | . . . . . 2 121 181 67 . 30 . Explosive 14 | . . . . . . . 9 5 . . . Electromagnetic 134 | . 18 12 . . . 26 35 43 . . . Robot Hit Streak 25 | . 4 8 . . 1 25 18 10 . 11 . Robot Miss Streak 8 | . 1 4 . . 2 5 6 8 . 1 . Penetration Max 1 | . . . . . . . . . . 1 . Secondary Targets 5 | . . 1 . . . 2 2 . . . . Max Gunslinging Chain 1 | . . 1 . . . 1 1 . . . . Shots Hit Robots 464 | . 12 25 . . 1 141 146 116 . 23 . Core Hits 273 | . 7 7 . . . 54 102 87 . 16 . Critical Hits 21 | . . . . . . 2 . 3 . 16 . Critical Kills 13 | . . . . . . . . 2 . 11 . Critical Parts Destroyed 8 | . . . . . . 2 . 1 . 5 . Melee Attacks 5 | . . . . . . . 5 . . . . Impact . | . . . . . . . . . . . . Slashing 5 | . . . . . . . 5 . . . . Piercing . | . . . . . . . . . . . . Sneak Attacks . | . . . . . . . . . . . . Combat Hostiles . | . . . . . . . . . . . . Follow-up Attacks . | . . . . . . . . . . . . Damage Inflicted 13998 | . 151 286 . . 24 2643 5755 4516 . 623 . Guns 6626 | . 151 264 . . . 2526 2685 1000 . . . Cannons 2615 | . . . . . . . 246 1846 . 523 . Explosions 4560 | . . 22 . . . 45 2723 1670 . 100 . Melee 43 | . . . . . . . 43 . . . . Ramming 58 | . . . . . . . 58 . . . . Kinetic 2590 | . . 195 . . . 564 . 1348 . 483 . Thermal 6526 | . . 22 . . 24 1777 3404 1159 . 140 . Explosive 1500 | . . . . . . . 655 845 . . . Electromagnetic 3281 | . 151 69 . . . 302 1595 1164 . . . Impact . | . . . . . . . . . . . . Slashing 43 | . . . . . . . 43 . . . . Piercing . | . . . . . . . . . . . . Highest Corruption 14 | . . . . . . . 11 1 11 14 14 Average Corruption 6 | . . . . . . . 4 1 9 11 14 Corruption Purged 4 | . . . . . . . 4 . . . . Effects 150 | . . . . . . . 72 4 4 52 18 Message Errors 28 | . . . . . . . 15 1 2 5 5 Matter Fused 23 | . . . . . . . 9 . 2 9 3 Heat Flow Errors 6 | . . . . . . . 2 . . 4 . Energy Discharges 17 | . . . . . . . 12 1 . 2 2 Parts Rejected 1 | . . . . . . . 1 . . . . Data Loss (minor) 15 | . . . . . . . 5 1 . 8 1 Data Loss (major) 3 | . . . . . . . . . . 2 1 Misfires 3 | . . . . . . . . . . 2 1 Alerts 1 | . . . . . . . 1 . . . . Misdirections 20 | . . . . . . . 2 . . 13 5 Targeting Errors 24 | . . . . . . . 16 1 . 7 . Weapon Failures 9 | . . . . . . . 9 . . . . Overload Shots . | . . . . . . . . . . . . Overflow Damage 274 | . . . . . . 4 170 90 . 10 . Projectiles 81 | . . . . . . 4 . 73 . 4 . Explosions 193 | . . . . . . . 170 17 . 6 . Melee . | . . . . . . . . . . . . Knockbacks 16 | . . . . . . . . 10 . 6 . Impact . | . . . . . . . . . . . . Kinetic 14 | . . . . . . . . 8 . 6 . Secondary 2 | . . . . . . . . 2 . . . Self-Inflicted Damage 634 | . . 32 . . . 15 312 109 . 166 . Shots 23 | . . 1 . . . 1 15 4 . 2 . Rammed 2 | . . . . . . . 2 . . . . Targets Rammed 4 | . . . . . . . 4 . . . . Kicked . | . . . . . . . . . . . . Crushed 2 | . . . . . . . 2 . . . . Highest Temperature 315 | . 108 120 . . . 315 305 270 . 268 . Average Temperature 97 | . 50 59 . . . 92 94 105 . 107 . Received Heat Transfer 2390 | . 42 . . . 18 519 1265 450 . 87 9 Effects 2 | . . . . . . 2 . . . . . Interference 2 | . . . . . . 2 . . . . . Siege Activations . | . . . . . . . . . . . . Robots Corrupted 8 | . . . . . . . 5 3 . . . Combat Hostiles 8 | . . . . . . . 5 3 . . . Parts Fried 25 | . . 1 . . . 2 12 10 . . . Impact Corruptions 1 | . . . . . . . . 1 . . . Robots Melted 3 | . . . . . . 1 2 . . . . Combat Hostiles 3 | . . . . . . 1 2 . . . . Parts Melted 26 | . . . . . . 8 16 2 . . . Heat Transferred 10836 | . . 50 . . 50 3271 5528 1837 . 100 . Parts Sabotaged . | . . . . . . . . . . . . Parts Stolen . | . . . . . . . . . . . . Parts Stripped . | . . . . . . . . . . . . Power Chain Reactions 10 | . . 1 . . . 1 7 1 . . . Missiles Intercepted . | . . . . . . . . . . . . Alert | -11 -10 -10 -10 -9 -8 -8 -7 -6 -6 -6 -6 ------- Run | Scr Mat Min Exi Min Mat Sto Fac Fac Was Fac Low Peak Influence 1067 | . 87 203 . . 22 588 1006 1067 383 268 . Initial 475 | . . 33 . . . 6 231 475 368 268 . Average 306 | . 55 119 . . 4 302 307 558 371 125 . Maximum Alert Level 3 | . . 1 . . . 2 3 3 1 1 . Low Security (%) 33 | . 100 54 . 100 100 21 28 . . 92 . Level 1 41 | . . 45 . . . 53 59 20 100 7 . Level 2 16 | . . . . . . 25 2 58 . . . Level 3 7 | . . . . . . . 9 20 . . . Level 4 . | . . . . . . . . . . . . Level 5 . | . . . . . . . . . . . . High Security . | . . . . . . . . . . . . Max Security . | . . . . . . . . . . . . Squads Dispatched 29 | . 1 . . . . 3 12 11 . 2 . Investigation 2 | . . . . . . . . 2 . . . Extermination 9 | . . . . . . . 5 2 . 2 . Reinforcement 13 | . 1 . . . . 3 4 5 . . . Assault 4 | . . . . . . . 2 2 . . . Garrison 1 | . . . . . . . 1 . . . . Intercept . | . . . . . . . . . . . . Construction Impeded 4 | . . . . . . 1 1 2 . . . Haulers Reinforced 4 | . . . . . . . 2 2 . . . Stealth | -11 -10 -10 -10 -9 -8 -8 -7 -6 -6 -6 -6 --------- Run | Scr Mat Min Exi Min Mat Sto Fac Fac Was Fac Low Distress Signals 5 | . . . . . . 3 1 1 . . . Communications Jammed . | . . . . . . . . . . . . Distress Signals . | . . . . . . . . . . . . Times Spotted 202 | . 5 7 . . 3 49 74 42 5 12 5 Peak Tracking Total 10 | . 2 3 . . 2 10 10 6 5 6 5 Tactical Retreats 8 | . 1 . . . 1 1 4 . . 1 . Traps | -11 -10 -10 -10 -9 -8 -8 -7 -6 -6 -6 -6 ------- Run | Scr Mat Min Exi Min Mat Sto Fac Fac Was Fac Low Traps Triggered 14 | . . . . . . 1 6 7 . . . Indirectly 1 | . . . . . . . 1 . . . . Trap Hack Attempts . | . . . . . . . . . . . . Triggered . | . . . . . . . . . . . . Disarmed . | . . . . . . . . . . . . Reprogrammed . | . . . . . . . . . . . . Reused . | . . . . . . . . . . . . Traps Extracted . | . . . . . . . . . . . . Installed . | . . . . . . . . . . . . Triggered 1 | . . . . . . . . . . . 1 Machines | -11 -10 -10 -10 -9 -8 -8 -7 -6 -6 -6 -6 ---------- Run | Scr Mat Min Exi Min Mat Sto Fac Fac Was Fac Low Machines Disabled 23 | . . 1 . . . 3 7 7 . 5 . Max in Single Turn 5 | . . 1 . . . 1 3 4 . 5 . Garrison Access 3 | . . . . . . . 2 1 . . . Machines Sabotaged . | . . . . . . . . . . . . Garrisons Compromised . | . . . . . . . . . . . . Overloaded Fab Kills . | . . . . . . . . . . . . Fab Network Shutdowns . | . . . . . . . . . . . . Hacking | -11 -10 -10 -10 -9 -8 -8 -7 -6 -6 -6 -6 --------- Run | Scr Mat Min Exi Min Mat Sto Fac Fac Was Fac Low Machines Accessed 34 | . . . 2 . 1 10 10 7 . 4 . Terminals 21 | . . . . . 1 10 4 3 . 3 . Fabricators 4 | . . . . . . . 2 2 . . . Repair Stations 3 | . . . . . . . 2 1 . . . Recycling Units . | . . . . . . . . . . . . Scanalyzers 2 | . . . . . . . 1 . . 1 . Garrison Access 2 | . . . . . . . 1 1 . . . Total Hacks 76 | . . . 2 . 4 23 20 16 . 11 . Successful 39 | . . . 2 . 1 12 9 7 . 8 . Failed 37 | . . . . . 3 11 11 9 . 3 . Catastrophic 5 | . . . . . 1 . 2 2 . . . Database Lockouts . | . . . . . . . . . . . . Manual 28 | . . . 1 . . 16 4 5 . 2 . Terminals 51 | . . . . . 4 23 7 8 . 9 . Fabricators 8 | . . . . . . . 4 4 . . . Repair Stations 7 | . . . . . . . 5 2 . . . Recycling Units . | . . . . . . . . . . . . Scanalyzers 4 | . . . . . . . 2 . . 2 . Garrison Access 4 | . . . . . . . 2 2 . . . Terminal Hacks 14 | . . . 2 . 1 5 . 1 . 5 . Record 1 | . . . 1 . . . . . . . . Part Schematic 1 | . . . . . . . . 1 . . . Open Door 2 | . . . . . . 2 . . . . . Branch Access Points 2 | . . . . . 1 . . . . 1 . Emergency Access Points 1 | . . . . . . . . . . 1 . Terminal Index 1 | . . . . . . . . . . 1 . Alert Level 1 | . . . . . . . . . . 1 . Unreport Threat 1 | . . . . . . . . . . 1 . Locate Traps 2 | . . . . . . 2 . . . . . Zone Layout 1 | . . . . . . 1 . . . . . EX-Prototype ID Bank 1 | . . . 1 . . . . . . . . Fabricator Hacks 4 | . . . . . . . 2 2 . . . Load Schematic 2 | . . . . . . . 1 1 . . . Build 2 | . . . . . . . 1 1 . . . Repair Station Hacks 5 | . . . . . . . 3 2 . . . Scan Component 3 | . . . . . . . 2 1 . . . Repair 2 | . . . . . . . 1 1 . . . Recycling Unit Hacks . | . . . . . . . . . . . . Scanalyzer 4 | . . . . . . . 2 . . 2 . Insert Component 2 | . . . . . . . 1 . . 1 . Analyze 2 | . . . . . . . 1 . . 1 . Garrison Access Hacks 1 | . . . . . . . 1 . . . . Seal Access 1 | . . . . . . . 1 . . . . Unauthorized Hacks 11 | . . . . . . 7 1 2 . 1 . Terminals 10 | . . . . . . 7 1 1 . 1 . Track 4 | . . . . . . 4 . . . . . Assimilate 1 | . . . . . . . . . . 1 . Botnet 5 | . . . . . . 3 1 1 . . . Fabricators . | . . . . . . . . . . . . Repair Stations . | . . . . . . . . . . . . Recycling Units . | . . . . . . . . . . . . Scanalyzers . | . . . . . . . . . . . . Garrison Access 1 | . . . . . . . . 1 . . . Jam 1 | . . . . . . . . 1 . . . Data Cores Recovered 1 | . . . . . . . . 1 . . . Used . | . . . . . . . . . . . . Hacking Detections 26 | . . . . . 1 8 7 6 . 4 . Full Trace Events 1 | . . . . . . . . 1 . . . Feedback Events . | . . . . . . . . . . . . Feedback Blocked . | . . . . . . . . . . . . Robot Schematics Acquired . | . . . . . . . . . . . . Robots Built . | . . . . . . . . . . . . Matter . | . . . . . . . . . . . . Time . | . . . . . . . . . . . . Total Robot Build Rating . | . . . . . . . . . . . . Part Schematics Acquired 3 | . . . . . . . 1 1 . 1 . Parts Built 2 | . . . . . . . 1 1 . . . Matter 380 | . . . . . . . 146 234 . . . Time 190 | . . . . . . . 73 117 . . . Total Part Build Rating 10 | . . . . . . . 3 7 . . . Parts Repaired 2 | . . . . . . . 1 1 . . . Time 57 | . . . . . . . 38 19 . . . Parts Recycled . | . . . . . . . . . . . . Recycled Matter . | . . . . . . . . . . . . Retrieved Matter . | . . . . . . . . . . . . Retrieved Components . | . . . . . . . . . . . . Parts Scanalyzed 2 | . . . . . . . 1 . . 1 . Part Schematics Acquired 2 | . . . . . . . 1 . . 1 . Parts Damaged . | . . . . . . . . . . . . Bothacking | -11 -10 -10 -10 -9 -8 -8 -7 -6 -6 -6 -6 ------------ Run | Scr Mat Min Exi Min Mat Sto Fac Fac Was Fac Low Used RIF Installer . | . . . . . . . . . . . . Robots Hacked . | . . . . . . . . . . . . Non-combat . | . . . . . . . . . . . . Combat . | . . . . . . . . . . . . Robot Hacks Applied . | . . . . . . . . . . . . Relay Couplers Released 4 | . . . . . . . 4 . . . . Programmers 4 | . . . . . . . 4 . . . . Robots Rewired 2 | . . . 2 . . . . . . . . Allies Hacked 3 | . . . . . . . 3 . . . . Hacks Repelled . | . . . . . . . . . . . . Allies | -11 -10 -10 -10 -9 -8 -8 -7 -6 -6 -6 -6 -------- Run | Scr Mat Min Exi Min Mat Sto Fac Fac Was Fac Low Total Allies 9 | . . . 2 . . . 3 3 . 1 . Largest Group 3 | . . . 2 2 2 . 3 3 . 1 . Highest-Rated Group 93 | . . . 29 29 29 . 93 93 . 26 . Highest-Rated Ally 31 | . . . 21 21 21 . 31 31 . 26 . Total Orders 3 | . . . . . . . . . . 3 . STAY 2 | . . . . . . . . . . 2 . FOLLOW 1 | . . . . . . . . . . 1 . Ally Attacks 73 | . . . . . 10 . 16 47 . . . Total Damage 1179 | . . . . . 57 . 330 792 . . . Kills 7 | . . . . . 1 . 1 5 . . . Allies Corrupted . | . . . . . . . . . . . . Allies Melted . | . . . . . . . . . . . . Intel | -11 -10 -10 -10 -9 -8 -8 -7 -6 -6 -6 -6 ------- Run | Scr Mat Min Exi Min Mat Sto Fac Fac Was Fac Low Robot Analysis Total . | . . . . . . . . . . . . Derelict Logs Recovered 1 | . . 1 . . . . . . . . . Drone Launches . | . . . . . . . . . . . . Drone Recoveries . | . . . . . . . . . . . . Exploration | -11 -10 -10 -10 -9 -8 -8 -7 -6 -6 -6 -6 ------------- Run | Scr Mat Min Exi Min Mat Sto Fac Fac Was Fac Low Turns Passed 9945 | . 152 724 733 64 206 1706 3316 1707 84 957 296 Spaces Moved 5509 | 1 102 541 442 33 112 613 1301 1125 125 853 261 Core 144 | . . . . . . . 74 70 . . . Treads 1750 | . . . . . . 606 1144 . . . . Legs 1248 | 1 102 541 442 33 112 7 . 10 . . . Wheels 946 | . . . . . . . 83 863 . . . Hover 1421 | . . . . . . . . 182 125 853 261 Flight . | . . . . . . . . . . . . Fastest Speed 46 | 120 120 120 120 180 150 150 50 50 50 46 52 Average Speed 134 | 120 120 120 160 180 172 180 206 102 52 61 52 Slowest Speed 310 | 120 120 120 180 180 180 185 310 150 61 110 52 Overloaded Moves 329 | . . . . . . . . . 15 53 261 Propulsion Burnouts 1 | . . . . . . . . . . . 1 Robots Hopped . | . . . . . . . . . . . . Cave-ins Triggered . | . . . . . . . . . . . . Exploration Rate (%) 43 | 2 32 99 70 9 16 87 35 23 86 17 49 Regions Visited 11 Branch Regions 5 Pre-discovered Areas 1 | . . . 1 . . . . . . . . Known Exits Taken 3 | . . . . . 1 . 1 . . 1 . Unknown Exits Taken 6 | 1 1 1 1 1 . 1 . . . . . Scrap Searched 1 | . . 1 . . . . . . . . . Spaces Dug 31 | . . . . . 1 10 1 5 . 14 . Terrain Destroyed 266 | . . . . . 1 13 105 77 . 70 . Melee 1 | . . . . . . . 1 . . . . Projectile 68 | . . . . . 1 12 . 26 . 29 . AOE 197 | . . . . . . 1 104 51 . 41 . Terrain Rammed . | . . . . . . . . . . . . Walls Destroyed . | . . . . . . . . . . . . Machines Disabled . | . . . . . . . . . . . . Actions | -11 -10 -10 -10 -9 -8 -8 -7 -6 -6 -6 -6 --------- Run | Scr Mat Min Exi Min Mat Sto Fac Fac Was Fac Low Total 7245 | . 114 573 466 38 116 966 1682 1496 141 1232 421 Wait 828 | . . 4 7 3 . 131 118 133 13 259 160 Move 5499 | . 101 540 441 32 111 612 1300 1125 124 852 261 Hop . | . . . . . . . . . . . . Pick Up 99 | . 2 3 5 3 1 22 29 21 2 11 . Fast Attach 76 | . . 1 . . . 17 14 29 1 14 . Attach 63 | . . . . . . 13 20 19 . 11 . Detach 39 | . . . . . . 9 8 12 . 10 . Swap 52 | . . 2 2 . 1 12 23 10 1 1 . Drop 80 | . 2 2 2 . . 21 17 20 . 16 . Fire 473 | . 9 21 . . 3 129 142 111 . 58 . Melee 5 | . . . . . . . 5 . . . . Ram . | . . . . . . . . . . . . Kick . | . . . . . . . . . . . . Crush 4 | . . . . . . . 4 . . . . Escape Stasis 18 | . . . . . . . 2 16 . . . Rewire 9 | . . . 9 . . . . . . . . Trap . | . . . . . . . . . . . . Miscellaneous . | . . . . . . . . . . . . Route ------- -11/Scrapyard -10/Materials (discovered 2 exits: [*Min x2]) -10/Mines (discovered 3 exits: [*Mat x2] / *Exi) -10/Exiles (discovered 2 exits: [*Min x2]) -9/Mines -8/Materials (discovered 2 exits: *Sto x2) -8/Storage (discovered 2 exits: *Fac / [Rec]) -7/Factory (discovered 2 exits: *Fac x2) -6/Factory -6/Waste -6/Factory (discovered 4 exits: *Low x2 / Ext x2) -6/Lower Caves History --------- Turn | Location | Event 1 | -11/Scrapyard | Discovered new exit (range 0) 1 | -11/Scrapyard | Entered Materials 25 | -10/Materials | Discovered new exit (range 16) 134 | -10/Materials | Discovered new exit (range 12) 153 | -10/Materials | Entered Mines 241 | -10/Mines | Met a Derelict testing a Signal Generator 246 | -10/Mines | Found Signal Generator 256 | -10/Mines | Discovered new exit (range 5) 267 | -10/Mines | Learned Materials trap positions 297 | -10/Mines | Discovered new exit (range 12) 310 | -10/Mines | Build established: Mutant 704 | -10/Mines | Found a hidden stash of uninstalled traps 868 | -10/Mines | Deemed a non-threat by the Exiles lab entrance 869 | -10/Mines | Discovered new exit (range 5) 877 | -10/Mines | Entered Exiles 877 | -10/Exiles | Found Exiles lab destroyed 895 | -10/Exiles | Discovered new exit (range 15) 1011 | -10/Exiles | Learned location of Zion (-6) 1416 | -10/Exiles | Opened EX-Vault 1427 | -10/Exiles | Found Supersonic Drone Bay 1583 | -10/Exiles | Discovered new exit (range 12) 1610 | -10/Exiles | Entered Mines 1610 | -9/Mines | Accompanied by 2 allies 1644 | -9/Mines | Discovered new exit (range 8) 1674 | -9/Mines | Entered Materials 1674 | -8/Materials | Accompanied by 2 allies 1674 | -8/Materials | Evolved 4 slots: Utility x4 1675 | -8/Materials | Loaded intel: 22 trap records 1721 | -8/Materials | Identified exit to Storage 1880 | -8/Materials | Entered Storage 1955 | -8/Storage | Lost 5 parts (1p1n3w) 2254 | -8/Storage | Destroyed 8 combat bots 2480 | -8/Storage | Lost 3 parts (1n1u1w) 2488 | -8/Storage | Discovered new exit (range 18) 2886 | -8/Storage | Build established: Hauler-Mutant 3510 | -8/Storage | Discovered new exit (range 15) 3586 | -8/Storage | Entered Factory 3586 | -7/Factory | Evolved 2 slots: Utility x2 4719 | -7/Factory | Repaired Hvy. Armor Plating 5070 | -7/Factory | Lost 7 parts (1p1n4u1w) 5126 | -7/Factory | Discovered new exit (range 9) 5177 | -7/Factory | Discovered new exit (range 9) 5276 | -7/Factory | Identified exit to Factory 6170 | -7/Factory | Allied Derelicts emerged from ambush trap array 6248 | -7/Factory | Fabricated Hvy. Armor Plating (x1) 6470 | -7/Factory | P-70 Sage assimilated allied 3V-IRE(g) 6487 | -7/Factory | Garrison activated, responded to threat 6624 | -7/Factory | Core integrity fell below 50% 6677 | -7/Factory | Lost 6 parts (1p1n2u2w) 6713 | -7/Factory | System corruption reached 10% 6770 | -7/Factory | Lost 5 parts (1p3u1w) 6786 | -7/Factory | First assault squad dispatched 6836 | -7/Factory | Core integrity fell below 20% 6864 | -7/Factory | Released all parts (8) 6902 | -7/Factory | Entered another Factory area 6902 | -6/Factory | Evolved 2 slots: Utility x1, Weapon x1 7151 | -6/Factory | Build established: Mutant 7331 | -6/Factory | Fabricated Adv. Transmission Jammer (x1) 7598 | -6/Factory | Build established: Scavenger-Tank 7952 | -6/Factory | First assault squad dispatched 7962 | -6/Factory | Repaired Hrd. Medium Armor Plating 7975 | -6/Factory | Allied Derelicts emerged from ambush trap array 8347 | -6/Factory | Lost 7 parts (1n4u2w) 8363 | -6/Factory | Destroyed 8 combat bots 8420 | -6/Factory | Core integrity fell below 50% 8514 | -6/Factory | Discovered new exit (range 15) 8569 | -6/Factory | Identified exit to Factory 8609 | -6/Factory | Sucked down chute 8609 | -6/Factory | Entered Waste 8624 | -6/Waste | EMP discharged 8624 | -6/Waste | System corruption reached 10% 8632 | -6/Waste | Build established: Hacker-Mutant 8643 | -6/Waste | Spotted C-40 Crusher 8647 | -6/Waste | Spotted C-40 Crusher 8675 | -6/Waste | Spotted C-40 Crusher 8676 | -6/Waste | Spotted C-40 Crusher 8678 | -6/Waste | Spotted C-40 Crusher 8684 | -6/Waste | Discovered new exit (range 16) 8692 | -6/Waste | Identified exit to Factory 8693 | -6/Waste | Entered Factory 8735 | -6/Factory | Spotted B-75 Beast 8769 | -6/Factory | Identified exit to Lower Caves 8769 | -6/Factory | Identified exit to Extension 8780 | -6/Factory | Found Prototype Processor 8780 | -6/Factory | Identified Exp. Signal Interpreter 9551 | -6/Factory | Core integrity fell below 20% 9650 | -6/Factory | Entered Lower Caves 9946 | -6/Lower Caves | Destroyed by G-67 Veteran with Electrolaser Last Messages --------------- 09646_ Identified Hvy. Flak Cannon. LOCATION=LOWER CAVES GOAL=ESCAPE 09653_ System corrupted: Substantial component data lost. 09676_ ,>7:74NEZZ>Y6UEA34%3 K,XPD50 09700_ OK& QRQQ3=KYVR1JV/|=O#QRF| T 09747_ System corrupted: Matter fused (-10). 09796_ System corrupted: Component data lost. 09829_ System corrupted: Energy discharge (-46). 09856_ 3 AFYXFARJKXEWHZTZEXO 09878_ System corrupted: Energy discharge (-30). 09894_ EOUZ#4L PP4TRX